[Event "Sheikh Russel GM 2021"]
[Site "Dhaka"]
[Date "2021.10.27"]
[Round "9.18"]
[White "Lodhi, Mahmood"]
[Black "Das, Sayantan"]
[Result "1/2-1/2"]
[ECO "E62"]
[WhiteElo "2315"]
[BlackElo "2444"]
[Annotator "NA"]
[PlyCount "149"]
[EventDate "2021.10.19"]
[EventType "swiss"]
[EventCountry "BAN"]
[SourceTitle "playchess.com"]
[Source "ChessBase"]
[SourceQuality "1"]
[TimeControl "40/5400+30:1800+30"]

1. d4 {[%emt 0:00:05]} Nf6 {[%emt 0:00:29]} 2. Nf3 {[%emt 0:00:07]} g6 {[%emt 0:00:12]} 3. g3 {[%emt 0:00:11]} Bg7 {[%emt 0:00:09]} 4. Bg2 {[%emt 0:00:13]} O-O {[%emt 0:00:13]} 5. O-O {[%emt 0:00:11]} d6 {[%emt 0:00:11]} 6. c4 {[%emt 0:00:08]} Nc6 {[%emt 0:00:21]} 7. Nc3 {[%emt 0:00:24]} e5 {[%emt 0:00:19]} 8. dxe5 {[%emt 0:01:17]} dxe5 {[%emt 0:00:56] 8...dxe5 scores better than 8...Nxe5.} 9. Bg5 {[%emt 0:00:48]} Be6 {[%emt 0:00:39]} 10. Nd5 {[%emt 0:01:32]} Re8 {[%emt 0:16:06]} 11. Nd2 {[%emt 0:01:37]} Bxd5 {[%emt 0:04:15]} 12. cxd5 {[%emt 0:00:43]} Ne7 {[%emt 0:00:18]} 13. Bxf6 {[%emt 0:01:48]} Bxf6 {[%emt 0:00:03]} 14. Ne4 {[%emt 0:00:09]} Nf5 {[%emt 0:01:21] [#]} 15. e3 $146 {[%emt 0:02:34]} ({Predecessor:} 15. Rc1 Bg7 16. e3 Nd6 17. Qb3 Rb8 18. Rc2 Nxe4 19. Bxe4 Bf8 20. Qa4 a6 21. Bg2 {½-½ (60) Vakhidov,J-Lukovic,V (1924) Kemer 2007}) 15... Nd6 {[%emt 0:04:35]} 16. Qb3 {[%emt 0:01:24]} Rb8 {[%emt 0:05:10]} 17. Nxd6 {[%emt 0:06:24]} cxd6 {[%emt 0:00:29]} 18. Rac1 {[%emt 0:00:41]} Qd7 {[%emt 0:02:35]} 19. Rc4 {[%emt 0:01:09]} Bd8 {[%emt 0:01:26]} 20. h4 {[%emt 0:00:48]} Bb6 {[%emt 0:05:21]} 21. Kh2 {[%emt 0:01:59]} f5 {[%emt 0:01:59]} 22. e4 {[%emt 0:03:16]} Rf8 {[%emt 0:06:01]} 23. Bh3 {[%emt 0:01:42]} Qg7 {[%emt 0:00:57]} 24. f4 {[%emt 1:13:20]} Rbe8 $11 {[%emt 0:08:40]} 25. Qc2 {[%emt 0:00:00]} exf4 {[%emt 0:12:51]} 26. Rxf4 {[%emt 0:00:00]} Qe5 {[%emt 0:00:57]} 27. Qc3 {[%emt 0:00:00]} Qxc3 {[%emt 0:08:22]} 28. bxc3 {[%emt 0:00:00]} Re5 {[%emt 0:00:15]} 29. Bg2 {[%emt 0:00:00]} Bc5 {[%emt 0:03:55]} 30. exf5 {[%emt 0:00:00]} gxf5 {[%emt 0:06:08]} 31. a4 {[%emt 0:00:00]} b6 {[%emt 0:02:59]} 32. Rf1 {[%emt 0:00:00]} Kg7 {[%emt 0:02:16]} 33. g4 {[%emt 0:00:00]} h5 {[%emt 0:02:25]} 34. gxh5 {[%emt 0:00:00]} Rh8 {[%emt 0:02:03]} 35. Bf3 {[%emt 0:00:00]} Kf6 {[%emt 0:00:36]} 36. h6 {[%emt 0:00:00]} Rxh6 {[%emt 0:00:57]} 37. h5 {[%emt 0:00:00]} Rh8 {[%emt 0:00:45]} 38. Rh4 {[%emt 0:00:00]} Be3 {[%emt 0:00:49]} 39. Rh3 {[%emt 0:00:21]} f4 {[%emt 0:00:36]} 40. Re1 {[%emt 0:00:00]} Rg5 {[%emt 0:00:00]} 41. Re2 {[%emt 0:02:36]} Rh6 {[%emt 0:11:53]} 42. Rg2 {[%emt 0:03:05]} Re5 {[%emt 0:00:07]} 43. Re2 {[%emt 0:01:51]} Re8 {[%emt 0:01:06]} 44. c4 {[%emt 0:01:53]} Rc8 {[%emt 0:00:33]} 45. Rc2 {[%emt 0:00:37]} Ke5 {[%emt 0:01:13]} 46. Be2 {[%emt 0:02:07]} Kd4 {[%emt 0:01:23]} 47. Ra2 {[%emt 0:00:44]} Rg8 {[%emt 0:02:32]} 48. a5 {[%emt 0:01:52]} bxa5 {[%emt 0:00:42]} 49. Rxa5 {[%emt 0:00:03]} Rb8 {[%emt 0:03:15]} 50. Kg2 {[%emt 0:02:07]} Rg8+ {[%emt 0:02:20]} 51. Kh2 {[%emt 0:03:38]} Rb8 {[%emt 0:00:18]} 52. Kg2 {[%emt 0:00:02]} Ke5 {[%emt 0:00:34]} 53. Ra2 {[%emt 0:06:06]} Rb3 {[%emt 0:02:24]} 54. Rxa7 {[%emt 0:00:53]} Kf6 {[%emt 0:02:21]} 55. Rd7 {[%emt 0:00:58]} Rb2 {[%emt 0:00:42]} 56. Kf3 {[%emt 0:01:18]} Bc5 {[%emt 0:00:13]} 57. Rd8 {[%emt 0:05:42]} Ke7 {[%emt 0:00:45]} 58. Rg8 {[%emt 0:00:21]} Rf6 {[%emt 0:02:13]} 59. Rg7+ {[%emt 0:02:33]} Kf8 {[%emt 0:00:24]} 60. Rg6 {[%emt 0:00:29]} Rf7 {[%emt 0:02:45]} 61. h6 {[%emt 0:02:15]} Rb3+ {[%emt 0:01:06]} 62. Kg2 {[%emt 0:00:36]} Rxh3 {[%emt 0:00:50]} 63. Kxh3 {[%emt 0:00:36]} f3 {[%emt 0:00:23]} 64. Bf1 {[%emt 0:00:03]} Ke7 {[%emt 0:01:45]} 65. Kg3 {[%emt 0:01:28]} f2 {[%emt 0:00:16]} 66. Re6+ {[%emt 0:01:01]} Kd7 {[%emt 0:00:14]} 67. Kg4 {[%emt 0:01:19]} Bd4 {[%emt 0:01:32]} 68. Re4 {[%emt 0:00:42]} Bb2 {[%emt 0:00:49]} 69. Kg5 {[%emt 0:01:04]} Rf3 {[%emt 0:00:17]} 70. h7 {[%emt 0:01:14]} Rg3+ {[%emt 0:00:27]} 71. Kh4 {[%emt 0:00:38]} Rg6 {[%emt 0:01:09]} 72. Bh3+ {[%emt 0:00:57]} Kd8 {[%emt 0:00:20]} 73. Re6 {[%emt 0:00:44]} Rxe6 {[%emt 0:00:36]} 74. dxe6 {[%emt 0:00:02]} Ke7 {[%emt 0:00:15]} 75. Bf1 {[%emt 0:03:35]} 1/2-1/2

[Event "Sheikh Russel GM 2021"]
[Site "Dhaka"]
[Date "2021.10.27"]
[Round "9.19"]
[White "Gleizerov, Evgeny"]
[Black "Alinasab, Mobina"]
[Result "1-0"]
[ECO "E04"]
[WhiteElo "2443"]
[BlackElo "2309"]
[Annotator "NA"]
[PlyCount "97"]
[EventDate "2021.10.19"]
[EventType "swiss"]
[EventCountry "BAN"]
[SourceTitle "playchess.com"]
[Source "ChessBase"]
[SourceQuality "1"]
[TimeControl "40/5400+30:1800+30"]

1. d4 {[%emt 0:00:05]} d5 {[%emt 0:00:05]} 2. c4 {[%emt 0:00:05]} e6 {[%emt 0:00:03]} 3. Nf3 {[%emt 0:00:05]} Nf6 {[%emt 0:00:04]} 4. g3 {[%emt 0:00:04]} dxc4 {[%emt 0:00:04]} 5. Bg2 {[%emt 0:00:04]} c6 {[%emt 0:00:05]} 6. Ne5 {[%emt 0:07:59]} Bb4+ {[%emt 0:00:11]} 7. Nc3 {[%emt 0:00:05]} Nd5 {[%emt 0:00:17]} 8. Bd2 {[%emt 0:00:05]} a5 {[%emt 0:03:48]} (8... Nb6 $11) 9. Nxc4 {[%emt 0:02:27]} O-O {[%emt 0:00:36]} 10. O-O {[%emt 0:03:24]} Nd7 {[%emt 0:03:26]} 11. e4 {[%emt 0:03:37]} N5b6 {[%emt 0:04:04]} 12. Nxb6 {[%emt 0:02:49]} Nxb6 {[%emt 0:00:44]} 13. a3 {[%emt 0:03:39]} Be7 {[%emt 0:00:35]} 14. Be3 {[%emt 0:10:08]} Nc4 {[%emt 0:07:50]} 15. Qe2 {[%emt 0:03:16]} Nxe3 {[%emt 0:06:00]} 16. Qxe3 {[%emt 0:02:38]} Qb6 {[%emt 0:00:08] [#]} (16... e5 $5 17. dxe5 a4 $11) 17. e5 $1 {[%emt 0:03:30]} f6 {[%emt 0:23:42]} ({Don't go for} 17... Qxb2 $2 18. Rfb1 $18) 18. Na4 {[%emt 0:07:48]} Qb5 {[%emt 0:06:43]} 19. b3 $16 {[%emt 0:00:19]} Qa6 {[%emt 0:11:21]} 20. Rfc1 {[%emt 0:04:38]} Qa7 {[%emt 0:01:06]} 21. f4 {[%emt 0:12:52]} fxe5 {[%emt 0:09:36]} 22. fxe5 {[%emt 0:00:57]} Rd8 {[%emt 0:04:29]} 23. Nc5 {[%emt 0:04:03]} b6 {[%emt 0:00:18]} 24. Nd3 {[%emt 0:00:38]} Bb7 {[%emt 0:03:54]} 25. Nf4 {[%emt 0:01:55]} Bg5 {[%emt 0:01:00]} 26. Bxc6 {[%emt 0:02:33]} b5 {[%emt 0:01:55]} 27. Bxb7 {[%emt 0:01:33]} Qxb7 {[%emt 0:00:02]} 28. Rc5 {[%emt 0:01:36]} Rd7 {[%emt 0:00:12]} 29. Rf1 {[%emt 0:02:06]} Qb6 {[%emt 0:02:45]} 30. Qe4 {[%emt 0:10:09]} Rf8 {[%emt 0:00:23]} 31. Ne2 {[%emt 0:03:53]} Re8 {[%emt 0:09:31]} 32. Qf3 {[%emt 0:02:41]} g6 {[%emt 0:00:36]} 33. Rc6 {[%emt 0:00:41]} Qd8 {[%emt 0:00:48]} 34. Qd3 {[%emt 0:02:10]} Qb8 {[%emt 0:00:34]} 35. Rc5 {[%emt 0:00:52]} b4 {[%emt 0:00:16]} 36. a4 {[%emt 0:00:34]} Qa7 {[%emt 0:00:40]} 37. Qe4 {[%emt 0:01:22]} Bd8 {[%emt 0:00:23]} 38. Rc4 {[%emt 0:00:42]} Bb6 {[%emt 0:00:20]} 39. Kg2 {[%emt 0:00:28]} Red8 {[%emt 0:00:42]} 40. Qc6 {[%emt 0:00:00]} Re7 {[%emt 0:00:00]} 41. Nf4 {[%emt 0:04:14]} Qa8 {[%emt 0:15:14]} 42. Rf3 {[%emt 0:06:25]} Rde8 {[%emt 0:08:58]} 43. Qxb6 {[%emt 0:04:45]} g5 {[%emt 0:02:53]} 44. Qc6 {[%emt 0:00:36]} gxf4 {[%emt 0:00:12]} 45. Qxa8 {[%emt 0:00:07]} Rxa8 {[%emt 0:00:03]} 46. Rxf4 {[%emt 0:00:05]} Rd8 {[%emt 0:00:09]} 47. Kf3 {[%emt 0:00:48]} Kg7 {[%emt 0:01:01]} 48. Rc5 {[%emt 0:00:15]} h5 {[%emt 0:00:27]} 49. Ke3 {[%emt 0:00:37]} 1-0

[Event "Sheikh Russel GM 2021"]
[Site "Dhaka"]
[Date "2021.10.27"]
[Round "9.22"]
[White "Harikrishnan.A.Ra"]
[Black "Nandhidhaa, P V"]
[Result "*"]
[ECO "A74"]
[WhiteElo "2429"]
[BlackElo "2318"]
[Annotator "NA RC"]
[PlyCount "53"]
[EventDate "2021.10.19"]
[EventType "swiss"]
[EventCountry "BAN"]
[SourceTitle "playchess.com"]
[Source "ChessBase"]
[SourceQuality "1"]
[TimeControl "40/5400+30:1800+30"]

{[%evp 8,36,68,67,85,57,55,43,48,32767,32767,32767,32767,43,45,53,70,41,58,32767,62,0,21,25,33,26,26,-42,-51,-52,-37]} 1. d4 {[%emt 0:00:05]} Nf6 {[%emt 0:00:14]} 2. c4 {[%emt 0:00:04]} e6 {[%emt 0:00:03]} 3. Nf3 {[%emt 0:00:05]} c5 {[%emt 0:00:20]} 4. d5 {[%emt 0:00:05]} exd5 {[%emt 0:00:04]} 5. cxd5 {[%emt 0:00:06]} d6 {[%emt 0:00:07]} 6. Nc3 {[%emt 0:00:05]} g6 {[%emt 0:00:04]} 7. e4 {[%emt 0:00:08]} Bg7 {[%emt 0:00:29]} 8. Nd2 {[%emt 0:00:15]} O-O {[%emt 0:01:08]} 9. Be2 {[%emt 0:00:12]} Nbd7 {[%emt 0:07:39]} 10. O-O {[%emt 0:00:26]} a6 {[%emt 0:02:45]} 11. a4 {[%emt 0:02:23]} Rb8 {[%emt 0:00:28]} 12. Nc4 {[%emt 0:03:04]} Nb6 {[%emt 0:03:06]} 13. Na3 {[%emt 0:11:52]} Re8 {[%emt 0:02:53]} 14. Bf3 {[%emt 0:06:22]} Nbd7 {[%emt 0:09:11]} 15. Bf4 {[%emt 0:01:03]} Ne5 {[%emt 0:00:38]} 16. Be2 {[%emt 0:00:24]} Bd7 {[%emt 0:08:26]} 17. Bg3 {[%emt 0:07:52]} (17. Re1 $11) 17... b5 $1 {[%emt 0:09:27]} 18. axb5 {[%emt 0:05:50]} axb5 $15 {[%emt 0:02:53]} 19. Naxb5 {[%emt 0:02:48]} Nxe4 {[%emt 0:04:39]} 20. Nxe4 {[%emt 0:01:28]} Bxb5 {[%emt 0:00:21]} 21. Bxb5 {[%emt 0:00:18]} Rxb5 {[%emt 0:00:02]} 22. Ra6 {[%emt 0:00:16]} Rb6 {[%emt 0:01:18]} 23. Qa4 {[%emt 0:13:33]} Rb4 {[%emt 0:02:48]} 24. Qc2 {[%emt 0:01:26]} Rxb2 {[%emt 0:02:40]} 25. Qa4 {[%emt 0:00:18]} Rb4 {[%emt 0:02:26]} 26. Qc2 {[%emt 0:00:15]} Rb2 {[%emt 0:10:40]} 27. Qa4 {[%emt 0:00:08]} *